[Event "Djerba Festival Blitz 2025"]
[Site "Djerba"]
[Date "2025.02.21"]
[Round "4.24"]
[White "MEZGOURI NOUREDDINE"]
[Black "Chaouech, Oussama"]
[Result "0-1"]
[ECO "A00"]
[WhiteElo "1891"]
[BlackElo "1651"]
[PlyCount "125"]
[EventDate "2025.02.15"]
[EventType "swiss"]
[EventCountry "TUN"]
[TimeControl "180+3"]

1. g3 {[%emt 0:00:03]} e5 {[%emt 0:00:04]} 2. Bg2 {[%emt 0:00:02]} d5 {[%emt 0:00:01]} 3. e3 {[%emt 0:00:02]} Nf6 {[%emt 0:00:05]} 4. Ne2 {[%emt 0:00:02]} c5 {[%emt 0:00:05]} 5. d4 {[%emt 0:00:03]} e4 {[%emt 0:00:08]} 6. dxc5 {[%emt 0:00:05]} Bxc5 {[%emt 0:00:04]} 7. O-O {[%emt 0:00:02]} O-O {[%emt 0:00:04]} 8. b3 {[%emt 0:00:04]} Nc6 {[%emt 0:00:12]} 9. Bb2 {[%emt 0:00:02]} Be6 {[%emt 0:00:08]} 10. Nd2 {[%emt 0:00:06]} Be7 {[%emt 0:00:06]} 11. Nf4 {[%emt 0:00:05]} Qd7 {[%emt 0:00:16]} 12. Nxe6 {[%emt 0:00:05]} fxe6 {[%emt 0:00:10]} 13. c4 {[%emt 0:00:02]} Nb4 {[%emt 0:00:11]} 14. Ba3 {[%emt 0:00:13]} Rad8 {[%emt 0:00:18]} 15. Qe2 {[%emt 0:00:10]} Nd3 {[%emt 0:00:05]} 16. Bxe7 {[%emt 0:00:05]} Qxe7 {[%emt 0:00:02]} 17. Rad1 {[%emt 0:00:22]} h5 {[%emt 0:00:17]} 18. f3 {[%emt 0:00:15]} Qe8 {[%emt 0:00:45]} 19. fxe4 {[%emt 0:00:06]} dxe4 {[%emt 0:00:07]} 20. Nxe4 {[%emt 0:00:05]} Nxe4 {[%emt 0:00:31]} 21. Bxe4 {[%emt 0:00:10]} Rxf1+ {[%emt 0:00:08]} 22. Rxf1 {[%emt 0:00:10]} Ne5 {[%emt 0:00:05]} 23. Bxb7 {[%emt 0:00:06]} Qd7 {[%emt 0:00:08]} 24. Bg2 {[%emt 0:00:07]} Ng4 {[%emt 0:00:04]} 25. Bf3 {[%emt 0:00:08]} Qd2 {[%emt 0:00:03]} 26. Bxg4 {[%emt 0:00:04]} hxg4 {[%emt 0:00:03]} 27. Qxd2 {[%emt 0:00:07]} Rxd2 {[%emt 0:00:01]} 28. Rf2 {[%emt 0:00:02]} Rd1+ {[%emt 0:00:04]} 29. Kg2 {[%emt 0:00:02]} Re1 {[%emt 0:00:03]} 30. h3 {[%emt 0:00:04]} gxh3+ {[%emt 0:00:02]} 31. Kxh3 {[%emt 0:00:03]} Rxe3 {[%emt 0:00:02]} 32. Rd2 {[%emt 0:00:09]} a5 {[%emt 0:00:05]} 33. Rd8+ {[%emt 0:00:05]} Kf7 {[%emt 0:00:03]} 34. Ra8 {[%emt 0:00:02]} e5 {[%emt 0:00:07]} 35. Rxa5 {[%emt 0:00:04]} Re1 {[%emt 0:00:02]} 36. Kg4 {[%emt 0:00:04]} Kf6 {[%emt 0:00:03]} 37. Ra6+ {[%emt 0:00:06]} Kf7 {[%emt 0:00:02]} 38. c5 {[%emt 0:00:03]} e4 {[%emt 0:00:03]} 39. c6 {[%emt 0:00:05]} e3 {[%emt 0:00:03]} 40. Kf3 {[%emt 0:00:04]} Ke7 {[%emt 0:00:03]} 41. Ra7+ {[%emt 0:00:04]} Kd6 {[%emt 0:00:03]} 42. Rxg7 {[%emt 0:00:03]} Kxc6 {[%emt 0:00:01]} 43. Re7 {[%emt 0:00:02]} Ra1 {[%emt 0:00:15]} 44. a4 {[%emt 0:00:03]} e2 {[%emt 0:00:00]} 45. Rxe2 {[%emt 0:00:04]} Rb1 {[%emt 0:00:00]} 46. Re3 {[%emt 0:00:02]} Kd5 {[%emt 0:00:00]} 47. Kf4 {[%emt 0:00:04]} Kd4 {[%emt 0:00:00]} 48. Rf3 {[%emt 0:00:03]} Re1 {[%emt 0:00:02]} 49. g4 {[%emt 0:00:04]} Re7 {[%emt 0:00:02]} 50. g5 {[%emt 0:00:04]} Rf7+ {[%emt 0:00:02]} 51. Kg4 {[%emt 0:00:02]} Rb7 {[%emt 0:00:03]} 52. g6 {[%emt 0:00:03]} Ke5 {[%emt 0:00:03]} 53. Rf7 {[%emt 0:00:06]} Rxb3 {[%emt 0:00:02]} 54. g7 {[%emt 0:00:02]} Rb4+ {[%emt 0:00:03]} 55. Kg5 {[%emt 0:00:04]} Rb1 {[%emt 0:00:02]} 56. Rf5+ {[%emt 0:00:05]} Ke4 {[%emt 0:00:02]} 57. Rf4+ {[%emt 0:00:02]} Ke3 {[%emt 0:00:02]} 58. Rg4 {[%emt 0:00:03]} Rb8 {[%emt 0:00:03]} 59. Kh6 {[%emt 0:00:02]} Rb6+ {[%emt 0:00:02]} 60. Kh7 {[%emt 0:00:04]} Rb7 {[%emt 0:00:02]} 61. Kh8 {[%emt 0:00:02]} Rb8+ {[%emt 0:00:02]} 62. g8=Q {[%emt 0:00:02]} Rxg8+ {[%emt 0:00:03]} 63. Rxg8 {[%emt 0:00:02]} 0-1

[Event "Djerba Festival Blitz 2025"]
[Site "Djerba"]
[Date "2025.02.21"]
[Round "4.25"]
[White "Chabbouh, Mohamed Rayen"]
[Black "Msalmi, Hamed"]
[Result "0-1"]
[ECO "B12"]
[WhiteElo "1518"]
[BlackElo "1747"]
[PlyCount "76"]
[EventDate "2025.02.15"]
[EventType "swiss"]
[EventCountry "TUN"]
[TimeControl "180+3"]

1. e4 {[%emt 0:00:04]} c6 {[%emt 0:03:06]} 2. d4 {[%emt 0:00:02]} d5 {[%emt 0:00:00]} 3. e5 {[%emt 0:00:02]} Bf5 {[%emt 0:00:00]} 4. Bd3 {[%emt 0:00:03]} Bxd3 {[%emt 0:00:00]} 5. Qxd3 {[%emt 0:00:02]} e6 {[%emt 0:00:00]} 6. Nf3 {[%emt 0:00:04]} a6 {[%emt 0:00:00]} 7. O-O {[%emt 0:00:04]} Ne7 {[%emt 0:00:00]} 8. Bg5 {[%emt 0:00:03]} Qb6 {[%emt 0:00:00]} 9. b3 {[%emt 0:00:10]} h6 {[%emt 0:00:00]} 10. Bh4 {[%emt 0:00:14]} g5 {[%emt 0:00:00]} 11. Bg3 {[%emt 0:00:01]} Ng6 {[%emt 0:00:00]} 12. Nc3 {[%emt 0:00:09]} Be7 {[%emt 0:00:00]} 13. Na4 {[%emt 0:00:03]} Qc7 {[%emt 0:00:00]} 14. Rac1 {[%emt 0:00:09]} b5 {[%emt 0:00:00]} 15. Nb2 {[%emt 0:00:01]} Nf4 {[%emt 0:00:00]} 16. Bxf4 {[%emt 0:00:04]} gxf4 {[%emt 0:00:00]} 17. Qd2 {[%emt 0:00:08]} f6 {[%emt 0:00:00]} 18. Qxf4 {[%emt 0:00:08]} Nd7 {[%emt 0:00:00]} 19. Rfe1 {[%emt 0:00:09]} f5 {[%emt 0:00:00]} 20. c4 {[%emt 0:00:16]} Qb6 {[%emt 0:00:00]} 21. c5 {[%emt 0:00:12]} Qc7 {[%emt 0:00:00]} 22. h3 {[%emt 0:00:24]} Nf8 {[%emt 0:00:00]} 23. Qg3 {[%emt 0:00:04]} Kf7 {[%emt 0:00:00]} 24. Kh1 {[%emt 0:00:18]} Ng6 {[%emt 0:00:00]} 25. h4 {[%emt 0:00:08]} Rag8 {[%emt 0:00:00]} 26. h5 {[%emt 0:00:05]} Nh4 {[%emt 0:00:00]} 27. Qh3 {[%emt 0:00:04]} Nxg2 {[%emt 0:00:00]} 28. Rg1 {[%emt 0:00:06]} Nf4 {[%emt 0:00:07]} 29. Qh2 {[%emt 0:00:11]} Ne2 {[%emt 0:00:10]} 30. Rxg8 {[%emt 0:00:10]} Rxg8 {[%emt 0:00:02]} 31. Rd1 {[%emt 0:00:05]} Rg4 {[%emt 0:00:11]} 32. Rd2 {[%emt 0:00:03]} Nc3 {[%emt 0:00:04]} 33. Nd3 {[%emt 0:00:07]} Ne4 {[%emt 0:00:05]} 34. Re2 {[%emt 0:00:04]} Qa5 {[%emt 0:00:04]} 35. Nfe1 {[%emt 0:00:14]} Rh4 {[%emt 0:00:17]} 36. Qxh4 {[%emt 0:00:03]} Bxh4 {[%emt 0:00:02]} 37. f3 {[%emt 0:00:04]} Bxe1 {[%emt 0:00:03]} 38. Nxe1 {[%emt 0:00:03]} Ng3+ {[%emt 0:00:02]} 0-1

[Event "Djerba Festival Blitz 2025"]
[Site "Djerba"]
[Date "2025.02.21"]
[Round "4.26"]
[White "Dejardin, Gregoire"]
[Black "Zerarga, Imene"]
[Result "1-0"]
[ECO "A46"]
[WhiteElo "1932"]
[BlackElo "1831"]
[PlyCount "68"]
[EventDate "2025.02.15"]
[EventType "swiss"]
[EventCountry "TUN"]
[TimeControl "180+3"]

1. d4 {[%emt 0:00:03]} Nf6 {[%emt 0:00:04]} 2. Nf3 {[%emt 0:00:02]} e6 {[%emt 0:00:02]} 3. b3 {[%emt 0:00:02]} d5 {[%emt 0:00:02]} 4. Bb2 {[%emt 0:00:02]} Bd6 {[%emt 0:00:05]} 5. Nbd2 {[%emt 0:00:02]} Nbd7 {[%emt 0:00:04]} 6. g3 {[%emt 0:00:02]} c5 {[%emt 0:00:06]} 7. e3 {[%emt 0:00:03]} b6 {[%emt 0:00:04]} 8. Bg2 {[%emt 0:00:03]} Bb7 {[%emt 0:00:03]} 9. O-O {[%emt 0:00:02]} O-O {[%emt 0:00:02]} 10. dxc5 {[%emt 0:00:03]} bxc5 {[%emt 0:00:22]} 11. c4 {[%emt 0:00:02]} Rb8 {[%emt 0:00:28]} 12. Rc1 {[%emt 0:00:03]} a5 {[%emt 0:00:06]} 13. Qc2 {[%emt 0:00:16]} Ba6 {[%emt 0:00:10]} 14. Rfd1 {[%emt 0:00:05]} Qb6 {[%emt 0:00:16]} 15. Ba1 {[%emt 0:00:11]} Rfc8 {[%emt 0:00:14]} 16. cxd5 {[%emt 0:00:10]} exd5 {[%emt 0:00:03]} 17. Qf5 {[%emt 0:00:09]} Bb7 {[%emt 0:00:32]} 18. Ne1 {[%emt 0:00:22]} Bc6 {[%emt 0:00:25]} 19. h4 {[%emt 0:00:06]} a4 {[%emt 0:00:05]} 20. h5 {[%emt 0:00:17]} h6 {[%emt 0:00:08]} 21. Nd3 {[%emt 0:00:24]} Bb5 {[%emt 0:00:15]} 22. Nf4 {[%emt 0:00:11]} d4 {[%emt 0:00:10]} 23. Nc4 {[%emt 0:00:17]} Bxc4 {[%emt 0:00:08]} 24. bxc4 {[%emt 0:00:08]} dxe3 {[%emt 0:00:09]} 25. fxe3 {[%emt 0:00:07]} Bf8 {[%emt 0:00:04]} 26. Nd5 {[%emt 0:00:16]} Nxd5 {[%emt 0:00:04]} 27. Bxd5 {[%emt 0:00:09]} Nf6 {[%emt 0:00:05]} 28. Rb1 {[%emt 0:00:17]} Qd6 {[%emt 0:00:05]} 29. Rxb8 {[%emt 0:00:06]} Qxb8 {[%emt 0:00:09]} 30. Bxf6 {[%emt 0:00:03]} gxf6 {[%emt 0:00:00]} 31. Be4 {[%emt 0:00:07]} Qxg3+ {[%emt 0:00:00]} 32. Kf1 {[%emt 0:00:06]} Qg7 {[%emt 0:00:04]} 33. Rd2 {[%emt 0:00:05]} Re8 {[%emt 0:00:05]} 34. Rg2 {[%emt 0:00:02]} Rxe4 {[%emt 0:00:06]} 1-0

[Event "Djerba Festival Blitz 2025"]
[Site "Djerba"]
[Date "2025.02.21"]
[Round "4.27"]
[White "Chavallard, Yanis"]
[Black "Zouaghi, Ahmed"]
[Result "0-1"]
[ECO "A37"]
[WhiteElo "1605"]
[BlackElo "1919"]
[PlyCount "122"]
[EventDate "2025.02.15"]
[EventType "swiss"]
[EventCountry "TUN"]
[TimeControl "180+3"]

1. c4 {[%emt 0:03:06]} c5 {[%emt 0:03:06]} 2. g3 g6 {[%emt 0:00:03]} 3. Bg2 {[%emt 0:00:06]} Bg7 4. Nf3 {[%emt 0:00:03]} Nc6 {[%emt 0:00:06]} 5. Nc3 {[%emt 0:00:03]} e5 {[%emt 0:00:03]} 6. O-O {[%emt 0:00:03]} d6 7. e3 {[%emt 0:00:03]} Nge7 {[%emt 0:00:06]} 8. d4 {[%emt 0:00:03]} cxd4 {[%emt 0:00:03]} 9. exd4 {[%emt 0:00:03]} O-O {[%emt 0:00:03]} 10. dxe5 {[%emt 0:00:03]} dxe5 11. Qxd8 {[%emt 0:00:03]} Rxd8 12. Ne4 {[%emt 0:00:03]} h6 {[%emt 0:00:09]} 13. c5 {[%emt 0:00:03]} b6 {[%emt 0:00:03]} 14. Be3 {[%emt 0:00:03]} Nf5 {[%emt 0:00:03]} 15. Rfe1 {[%emt 0:00:03]} Nxe3 {[%emt 0:00:03]} 16. Rxe3 {[%emt 0:00:03]} f5 {[%emt 0:00:03]} 17. Nd6 {[%emt 0:00:03]} e4 {[%emt 0:00:03]} 18. Nd2 {[%emt 0:00:03]} Bxb2 {[%emt 0:00:03]} 19. Rb1 {[%emt 0:00:03]} Bd4 {[%emt 0:00:03]} 20. Re2 {[%emt 0:00:03]} Ba6 {[%emt 0:00:03]} 21. Ree1 {[%emt 0:00:03]} Bxc5 {[%emt 0:00:03]} 22. N6c4 {[%emt 0:00:03]} b5 {[%emt 0:00:03]} 23. Nb3 {[%emt 0:00:03]} Bb4 {[%emt 0:00:03]} 24. Ncd2 {[%emt 0:00:03]} Bxd2 {[%emt 0:00:03]} 25. Red1 {[%emt 0:00:03]} Bb4 {[%emt 0:00:03]} 26. Rdc1 {[%emt 0:00:03]} Bb7 {[%emt 0:00:03]} 27. Rc2 {[%emt 0:00:03]} Rac8 {[%emt 0:00:03]} 28. Re2 {[%emt 0:00:03]} Bf8 {[%emt 0:00:03]} 29. f3 {[%emt 0:00:03]} Nd4 {[%emt 0:00:03]} 30. Nxd4 {[%emt 0:00:03]} Rxd4 31. fxe4 {[%emt 0:00:03]} fxe4 {[%emt 0:00:06]} 32. Rxb5 {[%emt 0:00:03]} Ba6 33. Rbb2 {[%emt 0:00:03]} Bxe2 {[%emt 0:00:06]} 34. Rxe2 Bc5 {[%emt 0:00:03]} 35. Kh1 {[%emt 0:00:06]} Bb6 {[%emt 0:00:03]} 36. Bxe4 {[%emt 0:00:03]} Kg7 {[%emt 0:00:03]} 37. Kg2 {[%emt 0:00:03]} Re8 {[%emt 0:00:03]} 38. Bf3 {[%emt 0:00:03]} Rxe2+ 39. Bxe2 Rd2 {[%emt 0:00:06]} 40. Kf3 Rxa2 {[%emt 0:00:03]} 41. Bc4 {[%emt 0:00:09]} Ra3+ 42. Ke4 {[%emt 0:00:03]} Ra4 {[%emt 0:00:06]} 43. Kd5 {[%emt 0:00:03]} Rxc4 {[%emt 0:00:03]} 44. Kxc4 Kf6 {[%emt 0:00:03]} 45. h3 {[%emt 0:00:06]} Kg5 {[%emt 0:00:03]} 46. Kb5 {[%emt 0:00:03]} Kf5 {[%emt 0:00:03]} 47. Kc4 {[%emt 0:00:03]} Ke4 {[%emt 0:00:03]} 48. Kb5 {[%emt 0:00:03]} Kf3 {[%emt 0:00:03]} 49. Kc6 Kxg3 {[%emt 0:00:03]} 50. Kd5 Kxh3 {[%emt 0:00:03]} 51. Ke6 g5 {[%emt 0:00:03]} 52. Kf5 {[%emt 0:00:12]} g4 {[%emt 0:00:03]} 53. Kg6 g3 {[%emt 0:00:03]} 54. Kxh6 {[%emt 0:00:06]} g2 55. Kh7 {[%emt 0:00:03]} g1=Q {[%emt 0:00:06]} 56. Kh6 {[%emt 0:00:03]} Qc5 {[%emt 0:00:03]} 57. Kh7 {[%emt 0:00:03]} Kh4 {[%emt 0:00:03]} 58. Kh8 {[%emt 0:00:03]} Qe7 {[%emt 0:00:03]} 59. Kg8 {[%emt 0:00:03]} Kg5 {[%emt 0:00:03]} 60. Kh8 Kg6 61. Kg8 {[%emt 0:00:06]} Qe8# 0-1

[Event "Djerba Festival Blitz 2025"]
[Site "Djerba"]
[Date "2025.02.21"]
[Round "4.28"]
[White "Messala, Noureddine"]
[Black "Baduel Ghalimi, Maxence"]
[Result "1-0"]
[ECO "D02"]
[WhiteElo "2069"]
[BlackElo "1506"]
[PlyCount "79"]
[EventDate "2025.02.15"]
[EventType "swiss"]
[EventCountry "TUN"]
[TimeControl "180+3"]

1. d4 {[%emt 0:00:04]} d5 {[%emt 0:00:03]} 2. Nf3 {[%emt 0:00:02]} Nf6 {[%emt 0:00:02]} 3. Bf4 {[%emt 0:00:02]} e6 {[%emt 0:00:03]} 4. e3 {[%emt 0:00:03]} c5 {[%emt 0:00:02]} 5. c3 {[%emt 0:00:02]} Be7 {[%emt 0:00:03]} 6. Nbd2 {[%emt 0:00:04]} O-O {[%emt 0:00:02]} 7. Bd3 {[%emt 0:00:02]} h6 {[%emt 0:00:14]} 8. h3 {[%emt 0:00:08]} Nc6 {[%emt 0:00:04]} 9. O-O {[%emt 0:00:03]} Bd7 {[%emt 0:00:03]} 10. Ne5 {[%emt 0:00:07]} Rc8 {[%emt 0:00:28]} 11. Rc1 {[%emt 0:00:13]} a6 {[%emt 0:00:03]} 12. Ndf3 {[%emt 0:00:08]} Nxe5 {[%emt 0:00:15]} 13. Nxe5 {[%emt 0:00:06]} Ne4 {[%emt 0:00:12]} 14. f3 {[%emt 0:00:24]} Nd6 {[%emt 0:00:03]} 15. Qe1 {[%emt 0:00:28]} Bg5 {[%emt 0:00:40]} 16. Bxg5 {[%emt 0:00:41]} Qxg5 {[%emt 0:00:04]} 17. Nxd7 {[%emt 0:00:05]} Rfd8 {[%emt 0:00:05]} 18. Ne5 {[%emt 0:00:04]} h5 {[%emt 0:00:14]} 19. f4 {[%emt 0:00:01]} Qf6 {[%emt 0:00:09]} 20. Qg3 {[%emt 0:00:09]} c4 {[%emt 0:00:08]} 21. Bb1 {[%emt 0:00:06]} b5 {[%emt 0:00:14]} 22. Qg5 {[%emt 0:00:15]} Qxg5 {[%emt 0:00:10]} 23. fxg5 {[%emt 0:00:02]} a5 {[%emt 0:00:09]} 24. Rf2 {[%emt 0:00:11]} f5 {[%emt 0:00:13]} 25. gxf6 {[%emt 0:00:03]} gxf6 {[%emt 0:00:02]} 26. Rxf6 {[%emt 0:00:04]} b4 {[%emt 0:00:07]} 27. Rcf1 {[%emt 0:00:07]} Rf8 {[%emt 0:00:10]} 28. Rxf8+ {[%emt 0:00:22]} Rxf8 {[%emt 0:00:02]} 29. Rxf8+ {[%emt 0:00:03]} Kxf8 {[%emt 0:00:02]} 30. Bc2 {[%emt 0:00:15]} Ke7 {[%emt 0:00:04]} 31. Nc6+ {[%emt 0:00:02]} Kf6 {[%emt 0:00:04]} 32. Nxa5 {[%emt 0:00:04]} bxc3 {[%emt 0:00:02]} 33. bxc3 {[%emt 0:00:02]} Nb5 {[%emt 0:00:04]} 34. a4 {[%emt 0:00:06]} Nxc3 {[%emt 0:00:03]} 35. Kf2 {[%emt 0:00:03]} Ne4+ {[%emt 0:00:17]} 36. Bxe4 {[%emt 0:00:03]} dxe4 {[%emt 0:00:02]} 37. Nxc4 {[%emt 0:00:02]} Ke7 {[%emt 0:00:02]} 38. a5 {[%emt 0:00:02]} Kd7 {[%emt 0:00:03]} 39. Kg3 {[%emt 0:00:03]} Kc7 {[%emt 0:00:02]} 40. Kf4 {[%emt 0:00:02]} 1-0

[Event "Djerba Festival Blitz 2025"]
[Site "Djerba"]
[Date "2025.02.21"]
[Round "4.29"]
[White "Mendili, Jahed"]
[Black "Badrakova, Kseniya"]
[Result "1-0"]
[ECO "B78"]
[WhiteElo "1771"]
[BlackElo "1757"]
[PlyCount "57"]
[EventDate "2025.02.15"]
[EventType "swiss"]
[EventCountry "TUN"]
[TimeControl "180+3"]

1. e4 {[%emt 0:00:05]} c5 {[%emt 0:00:02]} 2. Nf3 {[%emt 0:00:07]} d6 {[%emt 0:00:02]} 3. d4 {[%emt 0:00:02]} cxd4 {[%emt 0:00:02]} 4. Nxd4 {[%emt 0:00:02]} Nf6 {[%emt 0:00:02]} 5. Nc3 {[%emt 0:00:02]} g6 {[%emt 0:00:03]} 6. Be3 {[%emt 0:00:05]} Bg7 {[%emt 0:00:01]} 7. f3 {[%emt 0:00:07]} O-O {[%emt 0:00:03]} 8. Qd2 {[%emt 0:00:03]} Nc6 {[%emt 0:00:02]} 9. Bc4 {[%emt 0:00:09]} Bd7 {[%emt 0:00:03]} 10. O-O-O {[%emt 0:00:04]} Rc8 {[%emt 0:00:04]} 11. Bb3 {[%emt 0:00:05]} Ne5 {[%emt 0:00:13]} 12. g4 {[%emt 0:00:26]} Nc4 {[%emt 0:00:27]} 13. Bxc4 {[%emt 0:00:04]} Rxc4 {[%emt 0:00:02]} 14. h4 {[%emt 0:00:04]} h5 {[%emt 0:00:05]} 15. gxh5 {[%emt 0:00:52]} Nxh5 {[%emt 0:00:04]} 16. Rdg1 {[%emt 0:00:44]} Qa5 {[%emt 0:00:07]} 17. Rg5 {[%emt 0:00:06]} e5 {[%emt 0:01:48]} 18. Nb3 {[%emt 0:00:19]} Qc7 {[%emt 0:00:12]} 19. Nd5 {[%emt 0:00:08]} Qd8 {[%emt 0:00:22]} 20. Rhg1 {[%emt 0:00:03]} Kh7 {[%emt 0:00:11]} 21. Qg2 {[%emt 0:00:17]} Qe8 {[%emt 0:00:07]} 22. Rxh5+ {[%emt 0:00:03]} Kg8 {[%emt 0:00:02]} 23. Bh6 {[%emt 0:00:07]} Be6 {[%emt 0:00:05]} 24. Bxg7 {[%emt 0:00:04]} Kxg7 {[%emt 0:00:02]} 25. Ne3 {[%emt 0:00:02]} Rc7 {[%emt 0:00:02]} 26. Nf5+ {[%emt 0:00:04]} Bxf5 {[%emt 0:00:03]} 27. Rxf5 {[%emt 0:00:03]} Rh8 {[%emt 0:00:04]} 28. h5 {[%emt 0:00:03]} Qe7 {[%emt 0:00:03]} 29. hxg6 {[%emt 0:00:03]} 1-0

[Event "Djerba Festival Blitz 2025"]
[Site "Djerba"]
[Date "2025.02.21"]
[Round "4.30"]
[White "Badya, Vasily"]
[Black "Charfeddine, Khaled"]
[Result "1-0"]
[ECO "B30"]
[WhiteElo "1765"]
[BlackElo "1908"]
[PlyCount "65"]
[EventDate "2025.02.15"]
[EventType "swiss"]
[EventCountry "TUN"]
[TimeControl "180+3"]

1. e4 {[%emt 0:03:06]} c5 {[%emt 0:03:06]} 2. Nf3 Nc6 {[%emt 0:00:03]} 3. Bb5 {[%emt 0:00:06]} Nd4 {[%emt 0:00:03]} 4. Nxd4 {[%emt 0:00:03]} cxd4 5. Bc4 {[%emt 0:00:03]} e6 {[%emt 0:00:06]} 6. O-O {[%emt 0:00:03]} g6 {[%emt 0:00:03]} 7. d3 {[%emt 0:00:03]} Bg7 8. Nd2 {[%emt 0:00:03]} Ne7 {[%emt 0:00:06]} 9. Nf3 {[%emt 0:00:03]} O-O {[%emt 0:00:03]} 10. Bf4 {[%emt 0:00:03]} d6 {[%emt 0:00:03]} 11. e5 {[%emt 0:00:03]} Nc6 {[%emt 0:00:03]} 12. exd6 {[%emt 0:00:03]} e5 13. Bg5 {[%emt 0:00:03]} Qxd6 {[%emt 0:00:06]} 14. Qd2 {[%emt 0:00:03]} Re8 {[%emt 0:00:03]} 15. Rfe1 {[%emt 0:00:03]} Be6 {[%emt 0:00:03]} 16. Bb5 {[%emt 0:00:03]} Bg4 {[%emt 0:00:03]} 17. Bxc6 {[%emt 0:00:03]} bxc6 {[%emt 0:00:03]} 18. Nh4 {[%emt 0:00:03]} f6 {[%emt 0:00:03]} 19. Bh6 {[%emt 0:00:03]} Rab8 {[%emt 0:00:03]} 20. Bxg7 {[%emt 0:00:03]} Kxg7 21. b3 {[%emt 0:00:03]} g5 {[%emt 0:00:06]} 22. h3 Bh5 {[%emt 0:00:03]} 23. Nf5+ {[%emt 0:00:06]} Kh8 {[%emt 0:00:03]} 24. Nxd6 {[%emt 0:00:03]} Re6 {[%emt 0:00:03]} 25. Nf5 {[%emt 0:00:03]} Bg6 {[%emt 0:00:03]} 26. Ng3 {[%emt 0:00:03]} Rbe8 {[%emt 0:00:03]} 27. a4 {[%emt 0:00:03]} h5 {[%emt 0:00:03]} 28. Ne4 {[%emt 0:00:03]} Bxe4 {[%emt 0:00:03]} 29. Rxe4 {[%emt 0:00:03]} Kg7 {[%emt 0:00:03]} 30. Rae1 {[%emt 0:00:03]} Kg6 {[%emt 0:00:03]} 31. g3 {[%emt 0:00:03]} R8e7 {[%emt 0:00:03]} 32. f4 {[%emt 0:00:03]} gxf4 {[%emt 0:00:03]} 33. gxf4 {[%emt 0:00:03]} 1-0

[Event "Djerba Festival Blitz 2025"]
[Site "Djerba"]
[Date "2025.02.21"]
[Round "4.31"]
[White "Rene, Benoit"]
[Black "Mallah, Abderrahmane"]
[Result "1-0"]
[ECO "A36"]
[WhiteElo "2108"]
[BlackElo "1556"]
[PlyCount "67"]
[EventDate "2025.02.15"]
[EventType "swiss"]
[EventCountry "TUN"]
[TimeControl "180+3"]

1. c4 {[%emt 0:00:03]} Nf6 {[%emt 0:00:02]} 2. g3 {[%emt 0:00:02]} g6 {[%emt 0:00:03]} 3. Bg2 {[%emt 0:00:02]} Bg7 {[%emt 0:00:02]} 4. Nc3 {[%emt 0:00:02]} d6 {[%emt 0:00:02]} 5. e4 {[%emt 0:00:02]} c5 {[%emt 0:00:03]} 6. Nge2 {[%emt 0:00:02]} Nc6 {[%emt 0:00:04]} 7. O-O {[%emt 0:00:02]} O-O {[%emt 0:00:03]} 8. d3 {[%emt 0:00:02]} a6 {[%emt 0:00:20]} 9. a3 {[%emt 0:00:02]} e5 {[%emt 0:00:06]} 10. h3 {[%emt 0:00:06]} Be6 {[%emt 0:00:06]} 11. Nd5 {[%emt 0:00:02]} Nd4 {[%emt 0:00:16]} 12. Nxd4 {[%emt 0:00:06]} exd4 {[%emt 0:00:09]} 13. b4 {[%emt 0:00:06]} b6 {[%emt 0:00:30]} 14. Rb1 {[%emt 0:00:21]} Rb8 {[%emt 0:00:04]} 15. Bg5 {[%emt 0:00:04]} h6 {[%emt 0:00:17]} 16. Nxf6+ {[%emt 0:00:03]} Bxf6 {[%emt 0:00:06]} 17. Bxh6 {[%emt 0:00:02]} Bg7 {[%emt 0:00:07]} 18. Qd2 {[%emt 0:00:02]} Qd7 {[%emt 0:00:13]} 19. Kh2 {[%emt 0:00:03]} Rfe8 {[%emt 0:00:05]} 20. Bxg7 {[%emt 0:00:07]} Kxg7 {[%emt 0:00:02]} 21. f4 {[%emt 0:00:05]} Rh8 {[%emt 0:00:06]} 22. f5 {[%emt 0:00:06]} gxf5 {[%emt 0:00:11]} 23. Qg5+ {[%emt 0:00:03]} Kf8 {[%emt 0:00:04]} 24. exf5 {[%emt 0:00:02]} Qc8 {[%emt 0:00:48]} 25. fxe6 {[%emt 0:00:09]} Qxe6 {[%emt 0:00:02]} 26. Rbe1 {[%emt 0:00:07]} Qd7 {[%emt 0:00:10]} 27. Re4 {[%emt 0:00:21]} Re8 {[%emt 0:00:19]} 28. Rxe8+ {[%emt 0:00:17]} Kxe8 {[%emt 0:00:04]} 29. Qf5 {[%emt 0:00:18]} Qe7 {[%emt 0:00:03]} 30. Rf4 {[%emt 0:00:08]} Kd8 {[%emt 0:00:01]} 31. Re4 {[%emt 0:00:05]} Qc7 {[%emt 0:00:03]} 32. Qf6+ {[%emt 0:00:03]} Kc8 {[%emt 0:00:02]} 33. Qxh8+ {[%emt 0:00:03]} Kb7 {[%emt 0:00:05]} 34. Re7+ {[%emt 0:00:06]} 1-0

[Event "Djerba Festival Blitz 2025"]
[Site "Djerba"]
[Date "2025.02.21"]
[Round "4.32"]
[White "Alonso Garuti, Luis Eugenio"]
[Black "Chartier, Romain"]
[Result "1-0"]
[ECO "B13"]
[WhiteElo "1845"]
[BlackElo "1581"]
[PlyCount "47"]
[EventDate "2025.02.15"]
[EventType "swiss"]
[EventCountry "TUN"]
[TimeControl "180+3"]

1. e4 {[%emt 0:00:03]} c6 {[%emt 0:00:03]} 2. Nf3 {[%emt 0:00:04]} d5 {[%emt 0:03:06]} 3. exd5 {[%emt 0:00:04]} cxd5 {[%emt 0:00:00]} 4. d4 {[%emt 0:00:01]} Nc6 {[%emt 0:00:00]} 5. c4 {[%emt 0:00:03]} Nf6 {[%emt 0:00:00]} 6. Nc3 {[%emt 0:00:01]} Bg4 {[%emt 0:00:00]} 7. Qb3 {[%emt 0:00:07]} Qb6 {[%emt 0:00:00]} 8. cxd5 {[%emt 0:00:11]} Qxb3 {[%emt 0:00:00]} 9. axb3 {[%emt 0:00:03]} Nb4 {[%emt 0:00:00]} 10. Bb5+ {[%emt 0:00:10]} Bd7 {[%emt 0:00:00]} 11. O-O {[%emt 0:00:05]} Nbxd5 {[%emt 0:00:00]} 12. Bxd7+ {[%emt 0:00:09]} Kxd7 {[%emt 0:00:00]} 13. Re1 {[%emt 0:00:10]} e6 {[%emt 0:00:00]} 14. Ne5+ {[%emt 0:00:02]} Ke7 {[%emt 0:00:00]} 15. g4 {[%emt 0:00:08]} g6 {[%emt 0:00:00]} 16. g5 {[%emt 0:00:03]} Nh5 {[%emt 0:00:00]} 17. Nxd5+ {[%emt 0:00:03]} exd5 {[%emt 0:00:00]} 18. Nxg6+ {[%emt 0:00:14]} Kd6 {[%emt 0:00:00]} 19. Nxh8 {[%emt 0:00:04]} Bg7 {[%emt 0:00:00]} 20. Nxf7+ {[%emt 0:00:06]} Kc6 {[%emt 0:00:00]} 21. Ne5+ {[%emt 0:00:05]} Kb5 {[%emt 0:00:00]} 22. Bd2 {[%emt 0:00:05]} Rf8 {[%emt 0:00:00]} 23. Ra5+ {[%emt 0:00:02]} Kb6 {[%emt 0:00:00]} 24. Nd7+ {[%emt 0:00:04]} 1-0